[Event "HUN-chT Youth-Children 2018"]
[Site "Zalakaros"]
[Date "2018.07.26"]
[Round "1"]
[White "Marosi, Levente"]
[Black "Virag, Balint"]
[Result "0-1"]
[ECO "A13"]
[WhiteElo "2325"]
[BlackElo "2051"]
[Annotator "NA"]
[PlyCount "74"]
[EventDate "2018.07.26"]
[EventType "team-tourn"]
[EventCountry "HUN"]
[SourceTitle "playchess.com"]
[Source "ChessBase"]
[SourceQuality "1"]
[TimeControl "5400+30"]

1. c4 {[%emt 0:00:00]} e6 {[%emt 0:00:00]} 2. Nf3 {[%emt 0:00:00]} Nf6 {[%emt 0:00:03]} 3. g3 {[%emt 0:00:22]} d5 {[%emt 0:00:30]} 4. d4 {[%emt 0:00:36]} a6 {[%emt 0:00:51]} 5. Nbd2 {[%emt 0:09:22]} c5 {[%emt 0:03:28]} 6. cxd5 {[%emt 0:05:26]} exd5 {[%emt 0:02:09]} 7. dxc5 {[%emt 0:03:26]} Bxc5 {[%emt 0:02:00]} 8. Nb3 {[%emt 0:00:15]} Ne4 {[%emt 0:04:14]} 9. Nxc5 {[%emt 0:11:26]} Qa5+ {[%emt 0:00:22]} 10. Nd2 {[%emt 0:00:06]} Qxc5 {[%emt 0:01:57]} 11. Nxe4 {[%emt 0:00:07]} dxe4 {[%emt 0:00:18]} 12. Bg2 {[%emt 0:00:03]} Bf5 {[%emt 0:00:24]} 13. O-O {[%emt 0:08:39]} O-O {[%emt 0:01:29]} 14. Be3 {[%emt 0:00:59]} Qe7 {[%emt 0:05:11]} 15. Qd5 {[%emt 0:04:11]} Bg6 {[%emt 0:00:24]} 16. Rfd1 {[%emt 0:05:09]} Re8 {[%emt 0:02:38]} 17. Bc5 {[%emt 0:13:01]} Qc7 18. h4 {[%emt 0:06:57]} Nc6 {[%emt 0:09:26]} 19. Bd6 {[%emt 0:08:25]} Qa5 {[%emt 0:05:02]} 20. e3 {[%emt 0:04:52]} Qxd5 {[%emt 0:06:38]} 21. Rxd5 {[%emt 0:00:03]} Rad8 {[%emt 0:01:47]} 22. Rad1 {[%emt 0:00:40]} f6 {[%emt 0:01:00]} 23. Bc5 {[%emt 0:04:24]} Rxd5 {[%emt 0:02:33]} 24. Rxd5 {[%emt 0:00:02]} Re5 {[%emt 0:01:12]} 25. Rxe5 {[%emt 0:01:04]} Nxe5 {[%emt 0:00:02]} 26. Bh3 {[%emt 0:02:25]} Bf7 {[%emt 0:01:35]} 27. a3 {[%emt 0:02:30]} Bd5 {[%emt 0:02:17]} 28. Bb4 {[%emt 0:03:27]} Kf7 {[%emt 0:01:21]} 29. Bc3 {[%emt 0:00:02]} Nd3 {[%emt 0:03:42]} 30. Bc8 {[%emt 0:02:52]} g6 {[%emt 0:03:28]} 31. g4 {[%emt 0:02:22]} Ke7 {[%emt 0:02:56]} 32. g5 {[%emt 0:02:00]} f5 {[%emt 0:00:02]} 33. Bf6+ {[%emt 0:00:31]} Kd6 {[%emt 0:00:03]} 34. Bd8 {[%emt 0:00:37]} Nxb2 {[%emt 0:01:13]} 35. h5 {[%emt 0:00:18]} Nc4 {[%emt 0:00:49]} 36. a4 {[%emt 0:00:22]} Kc6 {[%emt 0:00:27]} 37. hxg6 {[%emt 0:00:55]} hxg6 {[%emt 0:00:01]} 0-1

[Event "HUN-chT Youth-Children 2018"]
[Site "Zalakaros"]
[Date "2018.07.26"]
[Round "1"]
[White "Krstulovic, Alex"]
[Black "Sulyok, Eszter"]
[Result "1-0"]
[ECO "D37"]
[WhiteElo "2289"]
[BlackElo "1804"]
[Annotator "NA"]
[PlyCount "41"]
[EventDate "2018.07.26"]
[EventType "team-tourn"]
[EventCountry "HUN"]
[SourceTitle "playchess.com"]
[Source "ChessBase"]
[SourceQuality "1"]
[TimeControl "5400+30"]

1. d4 {[%emt 0:00:00]} d5 {[%emt 0:00:00]} 2. c4 {[%emt 0:00:00]} e6 {[%emt 0:00:00]} 3. Nf3 {[%emt 0:00:00]} Nf6 {[%emt 0:00:35]} 4. Nc3 {[%emt 0:00:00]} Be7 {[%emt 0:00:14]} 5. Bf4 {[%emt 0:00:00]} O-O {[%emt 0:00:32]} 6. e3 {[%emt 0:00:07]} c5 {[%emt 0:00:05]} 7. dxc5 {[%emt 0:02:36]} Bxc5 {[%emt 0:00:08]} 8. Qc2 {[%emt 0:00:06]} Be7 {[%emt 0:12:45]} 9. Rd1 {[%emt 0:01:14]} Qa5 {[%emt 0:09:48]} 10. Nd2 {[%emt 0:10:44]} Nc6 {[%emt 0:15:41]} 11. Nb3 {[%emt 0:02:35]} Qd8 {[%emt 0:03:29]} 12. a3 {[%emt 0:01:13]} Re8 {[%emt 0:19:11]} 13. Be2 {[%emt 0:01:41]} Na5 {[%emt 0:11:58]} 14. O-O {[%emt 0:01:55]} Qb6 {[%emt 0:02:11]} 15. Nxa5 {[%emt 0:01:11]} Qxa5 {[%emt 0:00:11]} 16. Nb5 {[%emt 0:01:11]} Bd8 {[%emt 0:03:40]} 17. b4 {[%emt 0:01:22]} Qb6 {[%emt 0:00:54]} 18. c5 {[%emt 0:00:26]} Qc6 {[%emt 0:01:05]} 19. Nd4 {[%emt 0:00:07]} Qd7 {[%emt 0:02:10]} 20. Bb5 {[%emt 0:00:03]} Qe7 {[%emt 0:00:33]} 21. Bd6 {[%emt 0:00:02]} 1-0

[Event "HUN-chT Youth-Children 2018"]
[Site "Zalakaros"]
[Date "2018.07.26"]
[Round "1"]
[White "Czupor, Attila"]
[Black "Reviczki, Roland"]
[Result "1-0"]
[ECO "B33"]
[WhiteElo "2223"]
[BlackElo "1931"]
[Annotator "NA"]
[PlyCount "101"]
[EventDate "2018.07.26"]
[EventType "team-tourn"]
[EventCountry "HUN"]
[SourceTitle "playchess.com"]
[Source "ChessBase"]
[SourceQuality "1"]
[TimeControl "5400+30"]

1. e4 {[%emt 0:00:00]} c5 {[%emt 0:00:00]} 2. Nf3 {[%emt 0:00:00]} Nc6 {[%emt 0:00:14]} 3. d4 {[%emt 0:00:04]} cxd4 {[%emt 0:00:06]} 4. Nxd4 {[%emt 0:00:05]} Nf6 {[%emt 0:00:12]} 5. Nc3 {[%emt 0:02:16]} e5 {[%emt 0:00:07]} 6. Ndb5 {[%emt 0:03:40]} d6 {[%emt 0:00:12]} 7. Bg5 {[%emt 0:08:15]} a6 {[%emt 0:03:33]} 8. Na3 {[%emt 0:01:11]} b5 {[%emt 0:00:06]} 9. Nd5 {[%emt 0:01:35]} Be7 {[%emt 0:00:37]} 10. Bxf6 {[%emt 0:00:31]} Bxf6 {[%emt 0:06:23]} 11. c4 {[%emt 0:03:30]} b4 {[%emt 0:00:22]} 12. Nc2 {[%emt 0:00:46]} Bb7 {[%emt 0:16:08]} 13. Bd3 {[%emt 0:04:07]} Bg5 {[%emt 0:01:10]} 14. Ncxb4 {[%emt 0:06:24]} Nxb4 {[%emt 0:02:21]} 15. Nxb4 {[%emt 0:00:07]} Qa5 {[%emt 0:00:10]} 16. a3 {[%emt 0:00:58]} O-O {[%emt 0:03:35]} 17. O-O {[%emt 0:01:43]} Qc5 {[%emt 0:06:22]} 18. Nc2 {[%emt 0:08:15]} a5 {[%emt 0:02:35]} 19. b4 {[%emt 0:00:49]} axb4 {[%emt 0:00:12]} 20. axb4 {[%emt 0:00:13]} Qb6 {[%emt 0:01:10]} 21. Qg4 {[%emt 0:02:23]} Bd2 {[%emt 0:07:20]} 22. Qe2 {[%emt 0:06:00]} Bg5 {[%emt 0:07:51]} 23. Rfb1 {[%emt 0:02:16]} Rfc8 {[%emt 0:06:12]} 24. Qe1 {[%emt 0:07:43]} Qd8 {[%emt 0:11:17]} 25. Ne3 {[%emt 0:13:20]} Bxe3 {[%emt 0:08:21]} 26. Qxe3 {[%emt 0:00:19]} Rxa1 {[%emt 0:08:26]} 27. Rxa1 {[%emt 0:00:05]} Ra8 {[%emt 0:00:08]} 28. Qc1 {[%emt 0:07:11]} h6 {[%emt 0:00:58]} 29. h3 {[%emt 0:00:59]} Kh7 {[%emt 0:04:15]} 30. Ra3 {[%emt 0:02:49]} Qb6 {[%emt 0:03:22]} 31. Rxa8 {[%emt 0:00:56]} Bxa8 {[%emt 0:00:01]} 32. Qc3 {[%emt 0:02:18]} Bb7 {[%emt 0:00:27]} 33. c5 {[%emt 0:00:33]} dxc5 {[%emt 0:00:01]} 34. bxc5 {[%emt 0:00:13]} Qc7 {[%emt 0:01:05]} 35. f3 {[%emt 0:05:23]} Bc6 {[%emt 0:00:33]} 36. Bc4 {[%emt 0:00:45]} f6 {[%emt 0:00:23]} 37. Bd5 {[%emt 0:00:24]} Kg6 {[%emt 0:01:11]} 38. Qb4 {[%emt 0:02:17]} Qd7 {[%emt 0:00:56]} 39. Bxc6 {[%emt 0:02:37]} Qxc6 {[%emt 0:00:01]} 40. Qc4 {[%emt 0:00:14]} h5 {[%emt 0:00:55]} 41. h4 {[%emt 0:00:48]} Qc7 {[%emt 0:00:15]} 42. Qc3 {[%emt 0:02:11]} Qc6 {[%emt 0:00:06]} 43. Kh2 {[%emt 0:00:21]} Kh6 {[%emt 0:00:59]} 44. Qd2+ {[%emt 0:00:34]} Kg6 {[%emt 0:00:02]} 45. Qd5 {[%emt 0:00:29]} Qc7 {[%emt 0:00:47]} 46. c6 {[%emt 0:00:56]} Qb6 {[%emt 0:00:01]} 47. Qd7 {[%emt 0:00:46]} Qe3 {[%emt 0:01:05]} 48. Qf5+ {[%emt 0:01:03]} Kh6 {[%emt 0:00:43]} 49. c7 {[%emt 0:00:13]} g6 {[%emt 0:00:04]} 50. Qxf6 {[%emt 0:00:11]} Qc3 {[%emt 0:00:47]} 51. Qh8# {[%emt 0:00:06]} 1-0

[Event "HUN-chT Youth-Children 2018"]
[Site "Zalakaros"]
[Date "2018.07.26"]
[Round "1"]
[White "Buzas, Bertalan"]
[Black "Vodila, Martin Botond"]
[Result "1/2-1/2"]
[ECO "A05"]
[WhiteElo "2213"]
[BlackElo "2156"]
[Annotator "NA"]
[PlyCount "94"]
[EventDate "2018.07.26"]
[EventType "team-tourn"]
[EventCountry "HUN"]
[SourceTitle "playchess.com"]
[Source "ChessBase"]
[SourceQuality "1"]
[TimeControl "5400+30"]

1. Nf3 {[%emt 0:00:00]} Nf6 {[%emt 0:00:00]} 2. g3 {[%emt 0:00:00]} g6 {[%emt 0:00:00]} 3. Bg2 {[%emt 0:00:00]} Bg7 {[%emt 0:00:00]} 4. O-O {[%emt 0:00:00]} O-O {[%emt 0:00:03]} 5. d4 {[%emt 0:00:03]} d6 {[%emt 0:00:04]} 6. b3 {[%emt 0:00:06]} Nbd7 {[%emt 0:01:28]} 7. Bb2 {[%emt 0:00:09]} c6 {[%emt 0:01:02]} 8. Nbd2 {[%emt 0:01:06]} Qc7 {[%emt 0:03:47]} 9. e4 {[%emt 0:02:19]} b6 {[%emt 0:03:02]} 10. c4 {[%emt 0:03:39]} e5 {[%emt 0:00:28]} 11. Qc2 {[%emt 0:03:22]} Ne8 {[%emt 0:05:04]} 12. Rad1 {[%emt 0:12:43]} a6 {[%emt 0:04:16]} 13. Rfe1 {[%emt 0:29:50]} Bb7 {[%emt 0:07:13]} 14. Nf1 {[%emt 0:02:10]} Rd8 {[%emt 0:01:33]} 15. Ne3 {[%emt 0:01:53]} Qb8 {[%emt 0:00:36]} 16. h4 {[%emt 0:06:40]} Nc7 {[%emt 0:01:06]} 17. Bh3 {[%emt 0:02:16]} exd4 {[%emt 0:07:12]} 18. Bxd4 {[%emt 0:03:09]} Bxd4 {[%emt 0:01:30]} 19. Nxd4 {[%emt 0:02:14]} Ne5 {[%emt 0:02:37]} 20. Bg2 {[%emt 0:06:04]} c5 {[%emt 0:02:01]} 21. Ne2 {[%emt 0:00:59]} Ne6 {[%emt 0:02:00]} 22. Qc3 {[%emt 0:08:50]} f6 {[%emt 0:10:48]} 23. f4 {[%emt 0:03:19]} Nc6 {[%emt 0:02:21]} 24. Ng4 {[%emt 0:03:09]} Ned4 {[%emt 0:01:34]} 25. Nxd4 {[%emt 0:00:09]} Nxd4 {[%emt 0:00:09]} 26. Rxd4 cxd4 {[%emt 0:00:12]} 27. Qxd4 {[%emt 0:00:14]} Kg7 {[%emt 0:03:55]} 28. Qxb6 {[%emt 0:01:39]} Qc8 {[%emt 0:07:38]} 29. Ne3 {[%emt 0:01:34]} Rfe8 {[%emt 0:00:24]} 30. Qd4 {[%emt 0:00:40]} Qc5 {[%emt 0:02:39]} 31. Qxc5 {[%emt 0:00:21]} dxc5 {[%emt 0:00:09]} 32. e5 {[%emt 0:05:06]} Bxg2 {[%emt 0:02:08]} 33. exf6+ {[%emt 0:00:22]} Kxf6 {[%emt 0:01:22]} 34. Kxg2 {[%emt 0:00:28]} Rd2+ {[%emt 0:02:07]} 35. Kf3 {[%emt 0:00:14]} Rxa2 {[%emt 0:02:26]} 36. Ng4+ {[%emt 0:01:17]} Kf7 {[%emt 0:00:07]} 37. Ne5+ {[%emt 0:01:14]} Kg7 {[%emt 0:01:10]} 38. Rd1 {[%emt 0:01:03]} Rb8 {[%emt 0:07:37]} 39. Rd7+ {[%emt 0:00:23]} Kg8 {[%emt 0:00:14]} 40. Rc7 {[%emt 0:00:40]} Rxb3+ {[%emt 0:00:19]} 41. Kg4 {[%emt 0:00:08]} Rb8 {[%emt 0:12:38]} 42. Rxc5 {[%emt 0:00:38]} a5 {[%emt 0:00:24]} 43. Rc7 {[%emt 0:00:40]} Rf8 {[%emt 0:01:07]} 44. c5 {[%emt 0:00:27]} a4 {[%emt 0:00:01]} 45. Ra7 {[%emt 0:00:16]} a3 {[%emt 0:00:41]} 46. c6 {[%emt 0:00:23]} Ra1 {[%emt 0:00:34]} 47. Nd7 {[%emt 0:00:51]} Rf7 {[%emt 0:04:28]} 1/2-1/2

[Event "HUN-chT Youth-Children 2018"]
[Site "Zalakaros"]
[Date "2018.07.26"]
[Round "1"]
[White "Pribelszky, Bence"]
[Black "Juhasz, Adam"]
[Result "1-0"]
[ECO "B00"]
[WhiteElo "2206"]
[BlackElo "1929"]
[Annotator "NA"]
[PlyCount "59"]
[EventDate "2018.07.26"]
[EventType "team-tourn"]
[EventCountry "HUN"]
[SourceTitle "playchess.com"]
[Source "ChessBase"]
[SourceQuality "1"]
[TimeControl "5400+30"]

1. e4 {[%emt 0:00:00]} b6 {[%emt 0:00:00]} 2. d4 {[%emt 0:00:00]} Bb7 {[%emt 0:00:00]} 3. Bd3 {[%emt 0:00:50]} e6 {[%emt 0:00:13]} 4. Nf3 {[%emt 0:00:46]} Nf6 {[%emt 0:00:55]} 5. Qe2 {[%emt 0:00:45]} d5 {[%emt 0:01:16]} 6. e5 {[%emt 0:00:51]} Ne4 {[%emt 0:01:02]} 7. O-O {[%emt 0:05:16]} Be7 {[%emt 0:04:37]} 8. c4 {[%emt 0:14:41]} c5 {[%emt 0:09:55]} 9. cxd5 {[%emt 0:06:53]} exd5 {[%emt 0:01:02]} 10. Nc3 {[%emt 0:04:55]} Nxc3 {[%emt 0:03:16]} 11. bxc3 {[%emt 0:00:12]} O-O {[%emt 0:01:17]} 12. h4 {[%emt 0:11:15]} Nc6 {[%emt 0:12:13]} 13. Ng5 {[%emt 0:11:11]} h6 {[%emt 0:28:51]} 14. Qh5 {[%emt 0:08:50]} cxd4 15. e6 {[%emt 0:12:05]} Ne5 {[%emt 0:14:21]} 16. Nxf7 {[%emt 0:10:01]} Rxf7 {[%emt 0:05:25]} 17. exf7+ {[%emt 0:01:11]} Nxf7 18. cxd4 {[%emt 0:01:30]} Bf6 {[%emt 0:01:58]} 19. Bb2 {[%emt 0:04:29]} Bxh4 {[%emt 0:01:03]} 20. Qg6 {[%emt 0:01:53]} Be7 {[%emt 0:03:36]} 21. Rfe1 {[%emt 0:01:31]} Ng5 {[%emt 0:00:43]} 22. Bc1 {[%emt 0:00:53]} Qf8 {[%emt 0:01:19]} 23. Bxg5 {[%emt 0:00:38]} Bxg5 {[%emt 0:00:03]} 24. Qh7+ {[%emt 0:00:48]} Kf7 {[%emt 0:00:03]} 25. Re5 {[%emt 0:00:31]} Qd6 {[%emt 0:02:30]} 26. Rae1 {[%emt 0:00:29]} Bc8 {[%emt 0:02:39]} 27. Re8 {[%emt 0:00:33]} Bf4 {[%emt 0:04:23]} 28. Qg8+ {[%emt 0:00:27]} Kf6 {[%emt 0:00:04]} 29. Rxc8 {[%emt 0:00:33]} Rxc8 {[%emt 0:00:28]} 30. Qxc8 {[%emt 0:00:14]} 1-0

[Event "HUN-chT Youth-Children 2018"]
[Site "Zalakaros"]
[Date "2018.07.26"]
[Round "1"]
[White "Egyed, Judit"]
[Black "Fodor, Kornel"]
[Result "1-0"]
[ECO "B48"]
[WhiteElo "2171"]
[BlackElo "1794"]
[Annotator "NA"]
[PlyCount "73"]
[EventDate "2018.07.26"]
[EventType "team-tourn"]
[EventCountry "HUN"]
[SourceTitle "playchess.com"]
[Source "ChessBase"]
[SourceQuality "1"]
[TimeControl "5400+30"]

1. e4 {[%emt 0:00:00]} c5 {[%emt 0:00:00]} 2. Nf3 {[%emt 0:00:00]} e6 {[%emt 0:00:00]} 3. d4 {[%emt 0:00:00]} cxd4 {[%emt 0:00:00]} 4. Nxd4 {[%emt 0:00:00]} Nc6 {[%emt 0:00:00]} 5. Nc3 {[%emt 0:00:10]} Qc7 {[%emt 0:00:00]} 6. Be3 {[%emt 0:00:22]} a6 {[%emt 0:00:04]} 7. Bd3 {[%emt 0:00:22]} Nf6 {[%emt 0:01:23]} 8. O-O {[%emt 0:00:12]} Ne5 {[%emt 0:00:43]} 9. h3 {[%emt 0:00:24]} b5 {[%emt 0:00:23]} 10. a3 {[%emt 0:20:33]} Bb7 {[%emt 0:02:46]} 11. Qe2 {[%emt 0:02:51]} Bc5 {[%emt 0:15:49]} 12. Nb3 {[%emt 0:16:21]} Bxe3 {[%emt 0:10:18]} 13. Qxe3 {[%emt 0:00:40]} d6 {[%emt 0:03:51]} 14. Rad1 {[%emt 0:12:53]} O-O {[%emt 0:01:10]} 15. Kh1 {[%emt 0:04:16]} Nc4 {[%emt 0:06:37]} 16. Bxc4 {[%emt 0:01:00]} bxc4 {[%emt 0:00:46]} 17. Nd2 {[%emt 0:03:20]} Rfd8 {[%emt 0:16:14]} 18. Qg3 {[%emt 0:03:43]} Qc6 {[%emt 0:02:14]} 19. f4 {[%emt 0:03:40]} d5 {[%emt 0:03:26]} 20. e5 {[%emt 0:01:18]} Ne4 {[%emt 0:01:08]} 21. Ndxe4 {[%emt 0:04:41]} dxe4 {[%emt 0:00:07]} 22. Qe3 {[%emt 0:00:19]} f5 {[%emt 0:06:03]} 23. exf6 {[%emt 0:01:11]} gxf6 {[%emt 0:00:07]} 24. f5 {[%emt 0:04:47]} exf5 {[%emt 0:06:55]} 25. Rxd8+ {[%emt 0:06:18]} Rxd8 {[%emt 0:00:06]} 26. Rxf5 {[%emt 0:00:08]} Kh8 {[%emt 0:05:13]} 27. Qh6 {[%emt 0:03:26]} e3 {[%emt 0:01:41]} 28. Qxf6+ {[%emt 0:01:14]} Qxf6 {[%emt 0:00:13]} 29. Rxf6 {[%emt 0:00:03]} Rd1+ {[%emt 0:01:32]} 30. Kh2 {[%emt 0:01:45]} Rd2 {[%emt 0:01:42]} 31. Kg1 {[%emt 0:02:47]} Rd1+ {[%emt 0:02:46]} 32. Nxd1 {[%emt 0:01:23]} e2 {[%emt 0:00:07]} 33. Rf1 {[%emt 0:00:02]} exf1=Q+ 34. Kxf1 {[%emt 0:00:03]} Bd5 {[%emt 0:01:42]} 35. Ne3 {[%emt 0:00:10]} Be6 {[%emt 0:00:17]} 36. Kf2 {[%emt 0:00:35]} c3 {[%emt 0:03:11]} 37. b4 {[%emt 0:01:29]} 1-0

[Event "HUN-chT Youth-Children 2018"]
[Site "Zalakaros"]
[Date "2018.07.26"]
[Round "1"]
[White "Acs, Marton"]
[Black "Szabo, Andrea Erzsebet"]
[Result "1-0"]
[ECO "A06"]
[WhiteElo "2157"]
[BlackElo "1588"]
[Annotator "NA"]
[PlyCount "37"]
[EventDate "2018.07.26"]
[EventType "team-tourn"]
[EventCountry "HUN"]
[SourceTitle "playchess.com"]
[Source "ChessBase"]
[SourceQuality "1"]
[TimeControl "5400+30"]

1. Nf3 {[%emt 0:00:00]} d5 {[%emt 0:00:00]} 2. g3 {[%emt 0:00:26]} Nf6 {[%emt 0:00:24]} 3. Bg2 {[%emt 0:00:08]} Nc6 {[%emt 0:03:54]} 4. d4 {[%emt 0:00:24]} Bf5 {[%emt 0:02:31]} 5. c4 {[%emt 0:21:09]} Be4 {[%emt 0:19:10]} 6. Nc3 {[%emt 0:02:02]} e6 {[%emt 0:01:22]} 7. Qa4 {[%emt 0:13:31]} Be7 {[%emt 0:15:01]} 8. O-O {[%emt 0:06:12]} O-O {[%emt 0:00:30]} 9. Rd1 {[%emt 0:04:56]} Nb4 {[%emt 0:11:49]} 10. Nxe4 {[%emt 0:01:46]} Nxe4 {[%emt 0:00:42]} 11. a3 {[%emt 0:01:08]} Na6 {[%emt 0:03:13]} 12. Bf4 {[%emt 0:01:56]} c6 {[%emt 0:02:29]} 13. Rac1 {[%emt 0:02:45]} Qb6 {[%emt 0:04:06]} 14. b4 {[%emt 0:02:25]} dxc4 {[%emt 0:02:29]} 15. Ne5 {[%emt 0:01:17]} Nf6 {[%emt 0:01:21]} 16. Nxc4 {[%emt 0:01:20]} Qd8 {[%emt 0:01:15]} 17. Na5 {[%emt 0:00:43]} Qc8 {[%emt 0:02:49]} 18. Nxc6 {[%emt 0:00:48]} bxc6 {[%emt 0:03:57]} 19. Rxc6 {[%emt 0:00:13]} 1-0

[Event "HUN-chT Youth-Children 2018"]
[Site "Zalakaros"]
[Date "2018.07.26"]
[Round "1"]
[White "Kovacs, Judit"]
[Black "Borhy, Marcell"]
[Result "1/2-1/2"]
[ECO "D11"]
[WhiteElo "2143"]
[BlackElo "2234"]
[Annotator "NA"]
[PlyCount "44"]
[EventDate "2018.07.26"]
[EventType "team-tourn"]
[EventCountry "HUN"]
[SourceTitle "playchess.com"]
[Source "ChessBase"]
[SourceQuality "1"]
[TimeControl "5400+30"]

1. d4 {[%emt 0:00:00]} d5 {[%emt 0:00:00]} 2. c4 {[%emt 0:00:00]} c6 {[%emt 0:00:00]} 3. Nf3 {[%emt 0:00:00]} Nf6 {[%emt 0:00:04]} 4. Qb3 {[%emt 0:00:00]} dxc4 {[%emt 0:00:20]} 5. Qxc4 {[%emt 0:00:04]} Bf5 {[%emt 0:00:29]} 6. Nc3 {[%emt 0:00:23]} e6 {[%emt 0:00:14]} 7. g3 {[%emt 0:00:08]} Nbd7 {[%emt 0:00:26]} 8. Bg2 {[%emt 0:00:17]} Be7 {[%emt 0:00:42]} 9. O-O {[%emt 0:00:12]} O-O {[%emt 0:00:12]} 10. e3 {[%emt 0:00:35]} Rc8 {[%emt 0:03:06]} 11. Qe2 {[%emt 0:01:39]} Ne4 {[%emt 0:01:50]} 12. Nd2 {[%emt 0:11:03]} Nxd2 {[%emt 0:03:38]} 13. Bxd2 {[%emt 0:01:49]} Bg6 {[%emt 0:04:06]} 14. e4 {[%emt 0:07:02]} Nf6 {[%emt 0:06:57]} 15. Be3 {[%emt 0:04:04]} Bb4 {[%emt 0:02:03]} 16. f3 {[%emt 0:09:04]} Qa5 {[%emt 0:02:44]} 17. Rfc1 {[%emt 0:05:07]} c5 {[%emt 0:02:58]} 18. a3 {[%emt 0:04:34]} Bxc3 {[%emt 0:00:41]} 19. Rxc3 {[%emt 0:00:23]} cxd4 {[%emt 0:02:25]} 20. Bxd4 {[%emt 0:01:01]} Nd7 {[%emt 0:08:56]} 21. b4 {[%emt 0:10:09]} Qa4 {[%emt 0:02:13]} 22. Qb2 {[%emt 0:19:40]} f6 {[%emt 0:09:58]} 1/2-1/2

[Event "HUN-chT Youth-Children 2018"]
[Site "Zalakaros"]
[Date "2018.07.26"]
[Round "1"]
[White "Pogany, Zsombor"]
[Black "Vanczak, Tamas"]
[Result "1/2-1/2"]
[ECO "A01"]
[WhiteElo "2081"]
[BlackElo "2304"]
[Annotator "NA"]
[PlyCount "65"]
[EventDate "2018.07.26"]
[EventType "team-tourn"]
[EventCountry "HUN"]
[SourceTitle "playchess.com"]
[Source "ChessBase"]
[SourceQuality "1"]
[TimeControl "5400+30"]

1. b3 {[%emt 0:00:00]} d5 {[%emt 0:00:59]} 2. Bb2 {[%emt 0:00:00]} Nf6 {[%emt 0:00:41]} 3. e3 {[%emt 0:00:15]} c5 {[%emt 0:01:12]} 4. Nf3 {[%emt 0:00:26]} Nc6 {[%emt 0:04:12]} 5. Bb5 {[%emt 0:01:39]} e6 {[%emt 0:04:14]} 6. O-O {[%emt 0:00:59]} a6 {[%emt 0:03:56]} 7. Bxc6+ {[%emt 0:01:33]} bxc6 {[%emt 0:00:07]} 8. d3 {[%emt 0:01:57]} Be7 {[%emt 0:04:20]} 9. Nbd2 {[%emt 0:01:48]} O-O {[%emt 0:02:31]} 10. Ne5 {[%emt 0:05:28]} Qc7 {[%emt 0:01:59]} 11. f4 {[%emt 0:03:19]} Ne8 {[%emt 0:04:22]} 12. Qe2 {[%emt 0:05:39]} f6 {[%emt 0:04:54]} 13. Nef3 {[%emt 0:00:39]} Bd6 {[%emt 0:02:49]} 14. Rae1 {[%emt 0:04:06]} Qe7 {[%emt 0:04:34]} 15. g3 {[%emt 0:03:35]} e5 {[%emt 0:17:05]} 16. Qg2 {[%emt 0:13:05]} Bd7 {[%emt 0:06:43]} 17. fxe5 {[%emt 0:01:51]} fxe5 {[%emt 0:00:09]} 18. e4 d4 19. Nc4 {[%emt 0:02:32]} Bc7 {[%emt 0:06:39]} 20. Rf2 {[%emt 0:05:01]} Nf6 {[%emt 0:01:58]} 21. h3 {[%emt 0:03:53]} Nh5 {[%emt 0:02:19]} 22. Bc1 {[%emt 0:02:19]} h6 23. Ref1 {[%emt 0:01:26]} Qe6 {[%emt 0:11:59]} 24. Kh2 {[%emt 0:04:39]} g5 {[%emt 0:01:13]} 25. Ng1 {[%emt 0:01:46]} Ng7 {[%emt 0:04:52]} 26. Rxf8+ {[%emt 0:01:47]} Rxf8 {[%emt 0:00:01]} 27. Rxf8+ {[%emt 0:00:12]} Kxf8 {[%emt 0:00:06]} 28. g4 {[%emt 0:00:49]} Qf6 {[%emt 0:01:19]} 29. Qf3 {[%emt 0:01:07]} Ke7 {[%emt 0:00:20]} 30. Qxf6+ {[%emt 0:00:11]} Kxf6 {[%emt 0:00:06]} 31. Kg3 {[%emt 0:02:21]} h5 32. Nf3 {[%emt 0:03:39]} h4+ {[%emt 0:02:05]} 33. Kg2 {[%emt 0:00:18]} 1/2-1/2

[Event "HUN-chT Youth-Children 2018"]
[Site "Zalakaros"]
[Date "2018.07.26"]
[Round "1"]
[White "Pasztor, Balazs"]
[Black "Dora, Bence"]
[Result "1-0"]
[ECO "C54"]
[WhiteElo "2072"]
[BlackElo "1630"]
[Annotator "NA"]
[PlyCount "45"]
[EventDate "2018.07.26"]
[EventType "team-tourn"]
[EventCountry "HUN"]
[SourceTitle "playchess.com"]
[Source "ChessBase"]
[SourceQuality "1"]
[TimeControl "5400+30"]

1. e4 {[%emt 0:00:00]} e5 {[%emt 0:01:05]} 2. Nf3 {[%emt 0:00:04]} Nc6 {[%emt 0:01:06]} 3. Bc4 {[%emt 0:00:12]} Bc5 {[%emt 0:06:44]} 4. c3 {[%emt 0:01:06]} Nf6 {[%emt 0:05:58]} 5. d3 {[%emt 0:00:36]} d6 {[%emt 0:02:53]} 6. Bb3 {[%emt 0:02:12]} h6 {[%emt 0:07:41]} 7. Nbd2 {[%emt 0:03:06]} O-O {[%emt 0:04:28]} 8. h3 {[%emt 0:01:18]} a6 {[%emt 0:02:32]} 9. Nf1 {[%emt 0:01:35]} Be6 {[%emt 0:09:35]} 10. Ng3 {[%emt 0:04:26]} d5 {[%emt 0:08:32]} 11. Qe2 {[%emt 0:02:17]} d4 {[%emt 0:20:38]} 12. O-O {[%emt 0:05:23]} Qd7 {[%emt 0:05:24]} 13. Kh2 {[%emt 0:06:24]} Rad8 {[%emt 0:02:27]} 14. Rd1 {[%emt 0:02:34]} dxc3 {[%emt 0:07:57]} 15. bxc3 {[%emt 0:01:41]} Bxb3 {[%emt 0:01:03]} 16. axb3 {[%emt 0:00:37]} Qe6 {[%emt 0:01:17]} 17. b4 {[%emt 0:03:12]} Bb6 {[%emt 0:00:09]} 18. Nf5 {[%emt 0:03:59]} Nh7 {[%emt 0:03:22]} 19. Kg1 {[%emt 0:12:58]} Ne7 {[%emt 0:00:52]} 20. N3h4 {[%emt 0:03:08]} Nxf5 {[%emt 0:01:27]} 21. Nxf5 {[%emt 0:01:15]} Rd7 {[%emt 0:00:06]} 22. Qg4 {[%emt 0:05:26]} Ng5 23. h4 {[%emt 0:02:07]} 1-0